bitfinex/quotes_BTCUSD_20220115
["timestamp","ask_amount","ask_price","bid_price","bid_amount"]
[1642276111462,0.30940674,43494.0,43489.0,0.53804909]
[1642276111657,0.00010314,43493.0,43489.0,0.53804909]
[1642276112059,8.595e-05,43492.0,43489.0,0.53804909]
[1642276112605,0.33971022,43491.0,43489.0,0.53804909]
[1642276113004,0.33971022,43491.0,43489.0,0.51804909]
[1642276113402,0.046,43490.0,43489.0,0.51804909]
[1642276113603,0.046,43490.0,43487.0,0.67804863]
[1642276114203,0.046,43490.0,43487.0,1.66170117]
[1642276114403,0.046,43490.0,43487.0,1.96833473]
[1642276114604,0.046,43490.0,43487.0,0.67804863]
[1642276115003,0.046,43490.0,43487.0,0.67304863]
[1642276115207,0.046,43490.0,43488.0,0.67304863]
[1642276116464,0.046,43490.0,43488.0,0.62834863]
[1642276118671,0.046,43490.0,43487.0,0.98365254]
[1642276119175,0.046,43490.0,43481.0,0.51495856]
[1642276119176,1.73403384,43489.0,43481.0,0.51495856]
[1642276119375,0.14989219,43488.0,43481.0,0.19020086]
[1642276119573,0.5746,43486.0,43482.0,8.595e-05]
[1642276119808,1.175824,43483.0,43482.0,8.595e-05]
[1642276120013,0.73765452,43483.0,43482.0,8.595e-05]
[1642276120210,0.81448262,43483.0,43482.0,8.595e-05]
[1642276120415,0.81448262,43483.0,43481.0,0.00071498]
[1642276120609,0.81448262,43483.0,43478.0,0.24429088]
[1642276120610,0.230292,43482.0,43478.0,0.24429088]
[1642276120807,0.046,43481.0,43478.0,0.24429088]
[1642276121007,0.046,43480.0,43478.0,0.24429088]
[1642276121207,0.046,43479.0,43478.0,0.24429088]
[1642276121608,0.046,43479.0,43478.0,0.19959088]
[1642276121807,0.046,43479.0,43478.0,0.78389306]
[1642276123457,0.32276972,43479.0,43478.0,0.78389306]
[1642276124060,0.32276972,43479.0,43476.0,0.24768486]
[1642276124061,0.85,43477.0,43476.0,0.24768486]
[1642276124365,1.646,43477.0,43476.0,0.24768486]
[1642276124561,1.371824,43477.0,43470.0,1.07854487]
[1642276124760,0.1507594,43476.0,43470.0,1.07854487]
[1642276124960,0.30348969,43475.0,43472.0,0.00105315]
[1642276125163,1.775824,43473.0,43472.0,0.00105315]
[1642276125360,1.775824,43473.0,43471.0,0.14308559]
[1642276125361,1.380292,43472.0,43471.0,0.14308559]
[1642276125565,0.98253109,43472.0,43471.0,0.14308559]
[1642276125759,0.38253109,43472.0,43471.0,0.13822311]
[1642276126160,0.67584891,43472.0,43471.0,0.13822311]
[1642276126560,0.67584891,43472.0,43471.0,0.09352311]
[1642276127610,0.67530203,43472.0,43471.0,0.09352311]
[1642276128216,1.77530203,43472.0,43471.0,0.09352311]
[1642276128414,2.99730203,43472.0,43471.0,0.09352311]
[1642276128611,0.67530203,43472.0,43471.0,0.09352311]
[1642276129211,1.12530203,43472.0,43471.0,0.09352311]
[1642276129413,2.34730203,43472.0,43471.0,0.09352311]
[1642276130013,1.12530203,43472.0,43471.0,0.09352311]
[1642276130958,0.67530203,43472.0,43471.0,0.09352311]
[1642276131158,0.67530203,43472.0,43471.0,0.00013752]
[1642276131560,1.229739,43471.0,43462.0,0.68271195]
[1642276131857,0.31038416,43464.0,43463.0,0.00013752]
[1642276132057,0.35638416,43464.0,43463.0,0.00013752]
[1642276132258,0.64907703,43464.0,43462.0,0.00015471]
[1642276132457,0.28679317,43464.0,43463.0,0.58528454]
[1642276132657,0.046,43464.0,43463.0,0.58528454]
[1642276133058,0.046,43464.0,43462.0,0.3107033]
[1642276133858,0.046,43464.0,43462.0,0.00015471]
[1642276134260,0.046,43464.0,43461.0,0.0001719]
[1642276134701,0.046,43464.0,43461.0,0.00110484]
[1642276135002,0.046,43464.0,43462.0,0.00015471]
[1642276135604,0.13063803,43463.0,43462.0,0.00015471]
[1642276135915,0.17663803,43463.0,43461.0,0.00110484]
[1642276136103,0.15494282,43462.0,43461.0,0.00110484]
[1642276136303,0.20094282,43462.0,43461.0,0.00093294]
[1642276136505,0.20094282,43462.0,43460.0,0.54151748]
[1642276136704,0.20094282,43462.0,43456.0,0.54151748]
[1642276136705,0.26230462,43458.0,43456.0,0.54151748]
[1642276136907,0.51290725,43457.0,43456.0,0.54151748]
[1642276137106,0.37889616,43457.0,43456.0,0.54151748]
[1642276137406,0.37889616,43457.0,43450.0,0.68324165]
[1642276137606,0.13216351,43456.0,43450.0,0.68324165]
[1642276137806,0.046,43455.0,43451.0,0.0003438]
[1642276138468,0.38019802,43455.0,43451.0,0.0003438]
[1642276139062,0.48019802,43455.0,43451.0,0.0003438]
[1642276139466,0.48019802,43455.0,43451.0,0.00126964]
[1642276139663,1.222,43454.0,43451.0,0.00126964]
[1642276139863,0.375863,43452.0,43451.0,0.00092584]
[1642276140063,0.046,43452.0,43451.0,0.00092584]
[1642276140265,0.046,43452.0,43451.0,0.00126964]
[1642276140463,0.046,43452.0,43451.0,0.0003438]
[1642276140864,0.18124792,43452.0,43451.0,0.0003438]
[1642276141464,0.2297,43451.0,43444.0,0.68271195]
[1642276141664,0.046,43450.0,43444.0,0.66751195]
[1642276141864,0.046,43449.0,43445.0,0.00010314]
[1642276142064,0.046,43449.0,43446.0,0.32381318]
[1642276142523,0.046,43449.0,43447.0,6.876e-05]
[1642276142822,0.12988829,43448.0,43447.0,6.876e-05]
[1642276143027,0.17588829,43448.0,43447.0,6.876e-05]
[1642276143222,0.2297,43447.0,43444.0,0.64258071]
[1642276143425,0.2757,43447.0,43444.0,0.64258071]
[1642276143821,0.2757,43447.0,43446.0,0.29624256]
[1642276144425,1.2,43453.0,43446.0,0.46118181]
[1642276144426,0.046,43452.0,43446.0,0.46118181]
[1642276144626,1.2,43453.0,43446.0,0.66118181]
[1642276144922,1.2,43453.0,43451.0,0.33963317]
[1642276144923,1.10006876,43453.0,43451.0,0.33963317]
[1642276145122,1.10006876,43453.0,43452.0,2.025863]
[1642276145521,1.10006876,43453.0,43452.0,0.73465042]
[1642276145722,0.601,43453.0,43452.0,0.35878742]
[1642276145956,0.601,43453.0,43452.0,0.80878742]
[1642276146658,0.601,43453.0,43452.0,0.76378742]
[1642276147458,0.601,43453.0,43452.0,1.09510544]
[1642276148161,0.601,43453.0,43452.0,2.07096844]
[1642276148361,0.601,43453.0,43452.0,2.27096844]
[1642276148960,0.601,43453.0,43452.0,3.52096844]
[1642276149159,0.601,43453.0,43452.0,3.51596844]
[1642276149360,0.601,43453.0,43452.0,2.16596844]
[1642276149560,0.601,43453.0,43452.0,2.06596844]
[1642276150205,0.601,43453.0,43452.0,2.26596844]
[1642276151008,0.601,43453.0,43452.0,3.51596844]
[1642276151605,0.601,43453.0,43452.0,3.47126844]
[1642276153206,0.601,43453.0,43452.0,2.22126844]
[1642276153849,0.601,43453.0,43452.0,3.47126844]
[1642276156663,0.140941,43453.0,43452.0,3.32646844]
[1642276156862,1.8013,43479.0,43459.0,0.057506]
[1642276157060,0.2908,43476.0,43463.0,0.057505]
[1642276157306,0.2908,43476.0,43464.0,0.15705959]
[1642276157706,1.7553,43479.0,43470.0,0.27446946]
[1642276157908,0.375863,43478.0,43470.0,0.27446946]
[1642276158107,0.37632713,43478.0,43470.0,0.27446946]
[1642276158306,0.37632713,43478.0,43474.0,0.42587381]
[1642276158708,0.00047059,43476.0,43474.0,0.42587381]
[1642276159108,0.00041256,43475.0,43474.0,0.42587381]
[1642276159312,0.37627556,43475.0,43474.0,0.42587381]
[1642276159509,0.71107803,43475.0,43474.0,0.42587381]
[1642276160307,0.37627556,43475.0,43474.0,0.42587381]
[1642276160509,0.00041256,43475.0,43474.0,0.67139251]
[1642276161557,0.00041256,43475.0,43474.0,0.62649251]
[1642276163159,0.37627556,43475.0,43474.0,0.62649251]
[1642276163362,0.00041256,43475.0,43474.0,0.62649251]
[1642276163559,0.00041256,43475.0,43474.0,0.38097381]
[1642276164565,0.00041256,43475.0,43471.0,0.3339339]
[1642276164806,0.00041256,43475.0,43471.0,0.3914329]
[1642276165006,0.00039537,43474.0,43471.0,0.3914329]
[1642276165206,0.00039537,43474.0,43471.0,0.057499]
[1642276165406,0.00037818,43473.0,43467.0,0.3716725]
[1642276165810,0.28661602,43472.0,43467.0,0.21629162]
[1642276166008,0.28661602,43472.0,43467.0,1.08207098]
[1642276166209,0.0003438,43471.0,43467.0,1.08207098]
[1642276166510,0.00032661,43470.0,43467.0,0.11629162]
[1642276166707,0.00032661,43470.0,43468.0,0.96577936]
[1642276166907,0.00030942,43469.0,43467.0,1.03537098]
[1642276167110,0.00030942,43469.0,43467.0,0.92037598]
[1642276167306,0.00029223,43468.0,43467.0,0.92037598]
[1642276167509,0.00029223,43468.0,43467.0,0.37715962]
[1642276167707,0.00029223,43468.0,43467.0,2.08423816]
[1642276167908,0.00029223,43468.0,43467.0,2.14173816]
[1642276168754,0.00122502,43471.0,43468.0,2.40015422]
[1642276168958,0.0005297,43485.0,43471.0,0.057494]
[1642276169259,0.0005297,43485.0,43482.0,0.00120293]
[1642276169760,0.0005297,43485.0,43484.0,0.67651972]
[1642276169955,0.0005297,43485.0,43484.0,0.27651972]
[1642276170156,0.00082193,43485.0,43484.0,0.27651972]
[1642276170354,0.00082193,43485.0,43482.0,0.00120293]
[1642276170755,0.00027504,43484.0,43482.0,0.00120293]
[1642276171156,0.00025785,43483.0,43482.0,0.00120293]
[1642276171557,0.00025785,43483.0,43480.0,0.28563244]
[1642276171957,0.25676888,43488.0,43480.0,0.24103244]
[1642276172215,2.14097412,43485.0,43480.0,0.24103244]
[1642276172516,0.67954724,43484.0,43477.0,0.36942563]
[1642276172718,0.30368424,43484.0,43477.0,0.11624295]
[1642276173013,0.30368424,43484.0,43478.0,8.595e-05]
[1642276173212,2.14097412,43485.0,43478.0,8.595e-05]
[1642276174013,0.29998173,43481.0,43478.0,8.595e-05]
[1642276174213,0.29998173,43481.0,43480.0,0.27778022]
[1642276174812,0.29998173,43481.0,43478.0,8.595e-05]
[1642276176968,0.375863,43480.0,43472.0,0.54015893]
[1642276177165,0.40073587,43477.0,43472.0,0.54015893]
[1642276177367,0.40073587,43477.0,43473.0,8.595e-05]
[1642276177672,0.40073587,43477.0,43472.0,0.00010314]
[1642276177673,0.29932279,43476.0,43472.0,0.00010314]
[1642276177866,0.34532279,43476.0,43472.0,0.00010314]
[1642276178067,0.27716761,43474.0,43470.0,0.00013752]
[1642276178266,0.2297,43473.0,43467.0,0.00018909]
[1642276178466,0.27716761,43474.0,43467.0,0.00018909]
[1642276178867,0.27716761,43474.0,43465.0,0.00022347]
[1642276179066,0.30360536,43469.0,43465.0,0.00022347]
[1642276179266,0.30360536,43469.0,43466.0,0.00020628]
[1642276179707,0.30360536,43469.0,43465.0,0.00022347]
[1642276179909,0.31291798,43466.0,43465.0,0.00022347]
[1642276180311,0.046,43476.0,43465.0,0.00022347]
[1642276180512,0.375863,43475.0,43469.0,1.49848863]
[1642276180709,0.046,43475.0,43469.0,1.49848863]
[1642276180910,0.046,43475.0,43470.0,0.00013752]
[1642276181312,0.33784836,43474.0,43471.0,0.30083482]
[1642276181709,0.33784836,43474.0,43472.0,0.00010314]
[1642276181909,0.33784836,43474.0,43469.0,1.4547246]
[1642276182509,0.33737651,43474.0,43469.0,1.4547246]
[1642276182915,0.33737651,43474.0,43469.0,1.74499672]
[1642276183761,0.33737651,43474.0,43469.0,2.07295144]
[1642276184361,0.33737651,43474.0,43469.0,1.78267932]
[1642276185465,0.33737651,43474.0,43469.0,1.4547246]
[1642276186963,0.33737651,43474.0,43469.0,1.4099246]
[1642276187209,0.33633651,43474.0,43469.0,1.4099246]
[1642276194162,0.33633651,43474.0,43469.0,1.3652246]
[1642276197015,0.33633651,43474.0,43469.0,1.3203246]
[1642276202211,0.33633651,43474.0,43469.0,1.2756246]
[1642276207074,0.33633651,43474.0,43469.0,1.2309246]
[1642276208876,0.33633651,43474.0,43469.0,1.23051444]
[1642276210411,0.33633651,43474.0,43470.0,0.14652048]
[1642276210613,0.33633651,43474.0,43469.0,1.23051444]
[1642276211015,0.33633651,43474.0,43473.0,0.29839376]
[1642276211411,0.13816662,43478.0,43473.0,0.29839376]
[1642276211412,0.00085431,43476.0,43473.0,0.29839376]
[1642276212216,0.00085431,43476.0,43473.0,0.25349376]
[1642276212513,8.595e-05,43477.0,43473.0,0.25349376]
[1642276212714,0.00094026,43477.0,43473.0,0.25349376]
[1642276212913,6.876e-05,43476.0,43473.0,0.25349376]
[1642276213113,6.876e-05,43476.0,43469.0,1.22551444]
[1642276214385,0.28114026,43471.0,43469.0,1.22551444]
[1642276214585,0.32399258,43470.0,43469.0,1.22551444]
[1642276217212,0.32399258,43470.0,43469.0,1.18051444]
[1642276217611,0.32399258,43470.0,43469.0,1.17051444]
[1642276220217,0.32399258,43470.0,43469.0,1.17109987]
[1642276222164,0.32399258,43470.0,43469.0,1.12649987]
[1642276222367,0.45738922,43470.0,43469.0,1.12649987]
[1642276224815,0.32399258,43470.0,43469.0,1.12649987]
[1642276227211,0.45572774,43470.0,43469.0,1.08169987]
[1642276227811,0.32399258,43470.0,43469.0,1.08169987]
[1642276232311,0.32399258,43470.0,43469.0,1.03679987]
[1642276237169,0.32399258,43470.0,43469.0,0.99219987]
[1642276240316,0.13817877,43475.0,43469.0,0.99219987]
[1642276240317,0.13903299,43475.0,43469.0,0.99219987]
[1642276241116,0.00085422,43475.0,43473.0,0.28668992]
[1642276241317,0.24963411,43475.0,43473.0,0.28668992]
[1642276241517,0.25048836,43475.0,43473.0,0.28668992]
[1642276242316,0.25048836,43475.0,43473.0,0.24168992]
[1642276242517,0.24963411,43475.0,43473.0,0.24168992]
[1642276244266,0.24963411,43475.0,43469.0,0.99219987]
[1642276245069,0.25048836,43475.0,43469.0,0.99219987]
[1642276245265,0.25048836,43475.0,43469.0,1.29057262]
[1642276245666,0.25048836,43475.0,43469.0,0.99219987]
[1642276246067,0.24963411,43475.0,43469.0,0.99219987]
[1642276246269,0.25048836,43475.0,43469.0,0.99219987]
[1642276246869,0.27095993,43471.0,43470.0,0.68361883]
[1642276247068,0.25048836,43475.0,43470.0,0.68361883]
[1642276247323,0.24963411,43475.0,43470.0,0.63901883]
[1642276247520,0.25048835,43475.0,43470.0,0.63901883]
[1642276248119,0.30863263,43474.0,43470.0,0.63901883]
[1642276248320,0.30856357,43474.0,43470.0,0.63901883]
[1642276249020,0.25048836,43475.0,43470.0,0.63901883]
[1642276249421,0.25048836,43475.0,43470.0,1.62314272]
[1642276249621,0.24963411,43475.0,43470.0,1.62314272]
[1642276249827,0.25048836,43475.0,43470.0,1.62314272]
[1642276250022,0.29927382,43473.0,43470.0,1.62314272]
[1642276250224,0.29927382,43473.0,43472.0,0.00058543]
[1642276250423,0.25048836,43475.0,43472.0,0.00058543]
[1642276250823,0.24963411,43475.0,43472.0,0.00058543]
[1642276251564,0.3010783,43474.0,43472.0,0.00058543]
[1642276252264,0.3010783,43474.0,43470.0,0.59490426]
[1642276253066,0.3010783,43474.0,43470.0,1.57901758]
[1642276253266,0.25048836,43475.0,43470.0,1.57901758]
[1642276253267,0.24963411,43475.0,43470.0,1.57901758]
[1642276253466,0.25048836,43475.0,43470.0,1.57901758]
[1642276253665,0.25048836,43475.0,43470.0,0.59490426]
[1642276254468,0.59315052,43475.0,43470.0,0.98411332]
[1642276254715,0.59400478,43475.0,43470.0,0.98411332]
[1642276255219,0.25048837,43475.0,43473.0,0.58579676]
[1642276255715,0.24963411,43475.0,43473.0,0.58579676]
[1642276256319,0.29879433,43474.0,43473.0,0.58579676]
[1642276257116,0.29879433,43474.0,43472.0,0.58579676]
[1642276257316,0.29879433,43474.0,43472.0,0.53589676]
[1642276258566,0.25048836,43475.0,43472.0,0.53589676]
[1642276258967,0.38866446,43475.0,43472.0,0.53589676]
[1642276259368,0.38781021,43475.0,43472.0,0.53589676]
[1642276259768,0.66758791,43475.0,43472.0,0.53589676]
[1642276260467,0.38781021,43475.0,43472.0,0.53589676]
[1642276261468,0.38781021,43475.0,43474.0,0.29914877]
[1642276262314,0.38781021,43475.0,43474.0,0.25454877]
[1642276262513,0.38781021,43475.0,43471.0,0.68392941]
[1642276262514,0.00092301,43476.0,43471.0,0.68392941]
[1642276262917,6.876e-05,43476.0,43471.0,0.68392941]
[1642276263113,0.00092301,43476.0,43471.0,0.68392941]
[1642276263714,0.00092301,43476.0,43473.0,0.29062819]
[1642276264114,6.876e-05,43476.0,43473.0,0.29062819]
[1642276265519,6.876e-05,43476.0,43472.0,0.68392941]
[1642276265966,6.876e-05,43476.0,43474.0,0.58592639]
[1642276266766,6.876e-05,43476.0,43475.0,0.58592639]
[1642276267472,6.876e-05,43476.0,43475.0,0.54122639]
[1642276268074,6.876e-05,43476.0,43471.0,0.68392941]
[1642276268670,6.876e-05,43476.0,43471.0,0.6770374]
[1642276269069,0.00092301,43476.0,43472.0,0.6770374]
[1642276269732,0.00092301,43476.0,43470.0,0.9840842]
[1642276270233,0.00085425,43475.0,43470.0,0.9840842]
[1642276270432,0.00085425,43475.0,43469.0,1.30594958]
[1642276271234,6.876e-05,43476.0,43469.0,1.30594958]
[1642276271435,0.00085425,43475.0,43469.0,1.30594958]
[1642276272437,6.876e-05,43476.0,43469.0,1.26104958]
[1642276272636,0.00085425,43475.0,43469.0,1.26104958]
[1642276273666,6.876e-05,43476.0,43469.0,1.26104958]
[1642276273861,0.00085425,43475.0,43469.0,1.26104958]
[1642276274961,6.876e-05,43476.0,43469.0,1.26104958]
[1642276275162,0.00093273,43475.0,43469.0,1.26104958]
[1642276275867,0.3080736,43476.0,43471.0,0.24657253]
[1642276276063,0.046,43480.0,43474.0,0.4192846]
[1642276276364,8.595e-05,43481.0,43474.0,0.4192846]
[1642276276764,6.876e-05,43480.0,43474.0,0.4192846]
[1642276276963,6.876e-05,43480.0,43475.0,0.27472205]
[1642276277217,0.13815882,43481.0,43479.0,1.39994397]
[1642276277416,0.13815882,43481.0,43479.0,0.20524397]
[1642276277617,6.876e-05,43480.0,43479.0,0.20524397]
[1642276279218,6.876e-05,43480.0,43475.0,0.27472205]
[1642276279620,6.876e-05,43480.0,43475.0,0.26593673]
[1642276279920,1.89249307,43476.0,43475.0,0.26593673]
[1642276282373,1.89249307,43476.0,43475.0,0.87123673]
[1642276282973,0.00082777,43478.0,43475.0,0.87123673]
[1642276283273,6.876e-05,43480.0,43475.0,0.87123673]
[1642276283478,0.00082776,43479.0,43475.0,0.87123673]
[1642276284472,6.876e-05,43480.0,43475.0,0.87123673]
[1642276284714,0.00086152,43479.0,43475.0,0.87123673]
[1642276285715,6.876e-05,43480.0,43475.0,0.87123673]
[1642276285915,0.00086152,43479.0,43475.0,0.87123673]
[1642276287514,0.00086152,43479.0,43475.0,0.82643673]
[1642276288116,6.876e-05,43480.0,43475.0,0.82643673]
[1642276288318,0.00085095,43479.0,43475.0,0.82643673]
[1642276288564,0.00085095,43479.0,43475.0,0.17643673]
[1642276289368,6.876e-05,43480.0,43475.0,0.17643673]
[1642276289565,0.00085095,43479.0,43475.0,0.17643673]
[1642276290566,6.876e-05,43480.0,43475.0,0.17643673]
[1642276290767,0.00085095,43479.0,43475.0,0.17643673]
[1642276291767,6.876e-05,43480.0,43475.0,0.17643673]
[1642276291968,0.0008543,43479.0,43475.0,0.17643673]
[1642276292417,0.0008543,43479.0,43475.0,0.13173673]
[1642276292816,6.876e-05,43480.0,43475.0,0.13173673]
[1642276293017,0.0008543,43479.0,43475.0,0.13173673]
[1642276294021,0.14281729,43480.0,43474.0,0.4192846]
[1642276294217,0.0008543,43479.0,43474.0,0.4192846]
[1642276295116,0.0008543,43479.0,43475.0,0.26695613]
[1642276295317,6.876e-05,43480.0,43475.0,0.26695613]
[1642276295517,0.00085325,43479.0,43475.0,0.26695613]
[1642276296572,6.876e-05,43480.0,43475.0,0.26695613]
[1642276296770,0.00085324,43479.0,43475.0,0.26695613]
[1642276297472,0.00085324,43479.0,43475.0,0.22225613]
[1642276297674,6.876e-05,43480.0,43475.0,0.22225613]
[1642276297873,0.00085324,43479.0,43475.0,0.22225613]
[1642276298774,0.34379886,43478.0,43474.0,0.4192846]
[1642276298973,0.34379886,43478.0,43473.0,0.00120463]
[1642276299374,0.00085358,43479.0,43473.0,0.00120463]
[1642276300019,6.876e-05,43480.0,43473.0,0.00120463]
[1642276300217,0.00085358,43478.0,43473.0,0.00120463]
[1642276300519,0.00085358,43478.0,43474.0,0.24316845]
[1642276301319,0.2695076,43479.0,43474.0,0.24316845]
[1642276301520,0.00085358,43478.0,43474.0,0.24316845]
[1642276302520,0.14283953,43480.0,43474.0,0.24316845]
[1642276302817,0.00085348,43478.0,43474.0,0.19816845]
[1642276303217,0.00085348,43478.0,43473.0,0.37787361]
[1642276303670,0.33146573,43480.0,43473.0,0.37787361]
[1642276303871,0.00085348,43478.0,43473.0,0.37787361]
[1642276304871,6.876e-05,43480.0,43477.0,0.33314935]
[1642276305070,0.00085348,43478.0,43477.0,0.33314935]
[1642276305571,0.00104746,43478.0,43477.0,0.33314935]
[1642276306270,0.00019398,43478.0,43477.0,0.33314935]
[1642276307616,0.00019398,43478.0,43477.0,0.28844935]
[1642276307821,0.00019398,43478.0,43477.0,0.58620596]
[1642276308219,0.59619398,43478.0,43477.0,0.58620596]
[1642276308425,0.59619398,43478.0,43476.0,0.58620596]
[1642276308818,0.75091651,43477.0,43476.0,0.58620596]
[1642276309018,0.79691651,43477.0,43476.0,0.58620596]
[1642276309219,0.79691651,43477.0,43474.0,0.68390695]
[1642276309220,0.29691651,43477.0,43474.0,0.68390695]
[1642276309421,0.29691651,43477.0,43470.0,0.86901319]
[1642276309625,0.29691651,43477.0,43470.0,0.5863091]
[1642276309823,0.29691651,43477.0,43471.0,8.595e-05]
[1642276310022,0.29777001,43477.0,43471.0,8.595e-05]
[1642276310421,0.13817877,43475.0,43471.0,8.595e-05]
[1642276310622,0.046,43474.0,43471.0,8.595e-05]
[1642276312683,0.046,43474.0,43469.0,1.48528257]
[1642276313282,0.046,43474.0,43469.0,1.48028257]
[1642276313681,0.046,43474.0,43469.0,1.47528257]
[1642276314081,0.046,43474.0,43469.0,1.47028257]
[1642276314283,0.046,43474.0,43469.0,0.88407661]
[1642276314717,0.046,43474.0,43469.0,0.87907661]
[1642276315118,0.046,43474.0,43469.0,0.87407661]
[1642276316919,0.31826808,43473.0,43469.0,0.87407661]
[1642276317119,0.36426808,43473.0,43469.0,0.87407661]
[1642276317523,0.046,43473.0,43469.0,0.87407661]
[1642276317720,0.046,43473.0,43469.0,0.82897661]
[1642276322432,0.16579398,43472.0,43469.0,0.82897661]
[1642276322636,2.18819306,43470.0,43469.0,0.82897661]
[1642276322830,2.471863,43470.0,43469.0,0.78297661]
[1642276323031,2.571863,43470.0,43469.0,0.78297661]
[1642276323631,0.521863,43470.0,43469.0,0.78297661]
[1642276324031,1.571863,43470.0,43469.0,0.64476763]
[1642276324536,1.571863,43470.0,43458.0,0.68390695]
[1642276324537,0.057542,43465.0,43458.0,0.17032973]
[1642276324736,0.2297,43461.0,43458.0,0.17032973]
[1642276324936,0.37710604,43459.0,43458.0,0.17032973]
[1642276325238,0.80358376,43459.0,43458.0,0.00022347]
[1642276325434,0.229688,43459.0,43458.0,0.00022347]
[1642276325636,0.057539,43465.0,43458.0,0.00022347]
[1642276325835,0.046,43464.0,43458.0,0.00022347]
[1642276326068,0.046,43463.0,43458.0,0.00022347]
[1642276326268,0.3082,43469.0,43459.0,0.31879584]
[1642276326269,0.046,43462.0,43459.0,0.31879584]
[1642276326469,0.25586826,43468.0,43460.0,0.28177412]
[1642276326470,0.046,43461.0,43460.0,0.28177412]
[1642276326668,0.046,43461.0,43460.0,0.67725124]
[1642276326870,0.046,43461.0,43457.0,0.17032973]
[1642276326871,1.9,43460.0,43457.0,0.17032973]
[1642276327070,0.21179398,43461.0,43457.0,0.17032973]
[1642276327071,0.229688,43458.0,43457.0,0.17032973]
[1642276327270,1.246,43458.0,43457.0,0.07032973]
[1642276327470,1.74143241,43458.0,43457.0,0.07032973]
[1642276327875,1.84143241,43458.0,43457.0,0.02562973]
[1642276328470,2.375688,43458.0,43457.0,2.973e-05]
[1642276328670,1.575688,43458.0,43457.0,2.973e-05]
[1642276328870,2.797688,43458.0,43457.0,2.973e-05]
[1642276329171,2.807108,43458.0,43457.0,2.973e-05]
[1642276329571,3.05203682,43458.0,43457.0,2.973e-05]
[1642276330222,2.807108,43458.0,43457.0,2.973e-05]
[1642276330424,3.007108,43458.0,43457.0,2.973e-05]
[1642276331820,3.407108,43458.0,43457.0,2.973e-05]
[1642276332018,3.007108,43458.0,43457.0,2.973e-05]
[1642276332419,3.03607791,43458.0,43457.0,2.973e-05]
[1642276332619,3.34589045,43458.0,43450.0,0.78180836]
[1642276332821,0.487247,43454.0,43450.0,0.73768881]
[1642276333022,3.001688,43451.0,43450.0,0.59941849]
[1642276333220,3.047688,43451.0,43450.0,0.59941849]
[1642276333473,3.147688,43451.0,43450.0,0.59959039]
[1642276333673,0.375688,43451.0,43450.0,0.59959039]
[1642276333874,0.89974498,43451.0,43450.0,0.59959039]
[1642276334075,0.8324,43451.0,43450.0,0.59959039]
[1642276334276,0.7324,43451.0,43450.0,0.59959039]
[1642276334476,1.1324,43451.0,43450.0,0.46129824]
[1642276334875,0.7324,43451.0,43450.0,0.46129824]
[1642276335075,0.275688,43451.0,43450.0,0.46129824]
[1642276335276,0.046,43451.0,43450.0,0.46129824]
[1642276337826,1.175688,43451.0,43450.0,0.37209824]
[1642276338027,1.275688,43451.0,43450.0,0.37209824]
[1642276338525,2.497688,43451.0,43450.0,0.37209824]
[1642276339426,2.697688,43451.0,43450.0,0.37209824]
[1642276339726,2.755248,43451.0,43450.0,0.37209824]
[1642276339927,2.755248,43451.0,43450.0,0.2338175]
[1642276340329,2.755248,43451.0,43450.0,0.2288175]
[1642276340730,1.855248,43451.0,43450.0,0.2288175]
[1642276341277,1.797688,43451.0,43450.0,0.2288175]
[1642276341477,1.797688,43451.0,43450.0,0.09052538]
[1642276342877,1.797688,43451.0,43450.0,0.09042538]
[1642276343287,1.807108,43451.0,43450.0,0.09042538]
[1642276345618,1.807108,43451.0,43444.0,0.83198089]
[1642276345619,1.1,43450.0,43444.0,0.83198089]
[1642276345822,0.229688,43446.0,43444.0,0.83198089]
[1642276346019,0.16347278,43448.0,43445.0,8.595e-05]
[1642276346221,0.229688,43446.0,43445.0,8.595e-05]
[1642276346420,0.37762123,43446.0,43445.0,8.595e-05]
[1642276346620,0.47762123,43446.0,43445.0,8.595e-05]
[1642276346822,0.75414374,43446.0,43445.0,8.595e-05]
[1642276347119,0.37652251,43446.0,43444.0,0.69377198]
[1642276347321,0.1,43446.0,43444.0,0.69377198]
[1642276347721,0.05756159,43449.0,43444.0,0.69377198]
[1642276347921,0.05756159,43449.0,43444.0,0.64907198]
[1642276348674,0.20543105,43449.0,43444.0,0.64907198]
[1642276348874,0.05756159,43449.0,43444.0,0.64907198]
[1642276349074,0.05756159,43449.0,43444.0,0.51078986]
[1642276349477,0.20601565,43449.0,43444.0,0.51169132]
[1642276349676,0.28928772,43448.0,43444.0,0.51169132]
[1642276350475,0.28928772,43448.0,43444.0,0.37251074]
[1642276350675,0.229688,43445.0,43444.0,0.37341222]
[1642276350874,0.3978286,43445.0,43444.0,0.37341222]
[1642276351078,0.4978286,43445.0,43444.0,0.37341222]
[1642276351775,0.4978286,43445.0,43444.0,0.37251074]
[1642276352820,0.4978286,43445.0,43444.0,0.32791074]
[1642276353221,0.5438286,43445.0,43444.0,0.32791074]
[1642276353420,0.5438286,43445.0,43444.0,0.18962193]
[1642276354721,0.5438286,43445.0,43444.0,0.05132863]
[1642276356179,0.375688,43445.0,43444.0,0.05132863]
[1642276356375,0.08605908,43440.0,43437.0,0.3002]
[1642276356577,0.13205908,43440.0,43436.0,0.36614047]
[1642276356780,0.13205908,43440.0,43438.0,0.00012033]
[1642276356979,0.08605908,43440.0,43438.0,0.00012033]
[1642276357380,0.08605908,43440.0,43438.0,0.54800301]
[1642276357781,0.08605908,43440.0,43439.0,1.10010314]
[1642276357981,0.08605908,43440.0,43439.0,1.05530314]
[1642276358383,0.00093296,43447.0,43440.0,2.3]
[1642276358584,0.00093296,43447.0,43446.0,1.0]
[1642276358788,0.00093296,43447.0,43446.0,1.39061158]
[1642276358982,0.00942,43459.0,43447.0,0.00126092]
[1642276359282,0.00066964,43449.0,43447.0,0.17055986]
[1642276359483,0.00066964,43449.0,43448.0,2.26491563]
[1642276359726,0.00066964,43449.0,43448.0,0.41491563]
[1642276360126,0.13826105,43449.0,43448.0,0.41491563]
[1642276361531,0.13826105,43449.0,43447.0,0.00126092]
[1642276361931,0.00015471,43448.0,43447.0,0.00126092]
[1642276362931,0.00015471,43448.0,43447.0,1.07073535]
[1642276363575,0.00015471,43448.0,43447.0,1.52073535]
[1642276363775,0.00015471,43448.0,43447.0,1.07073535]
[1642276365580,0.00015471,43448.0,43447.0,2.02073535]
[1642276365878,0.00015471,43448.0,43447.0,1.07073535]
[1642276366680,0.00015471,43448.0,43447.0,0.32073535]
[1642276367525,0.00015471,43448.0,43447.0,1.17073535]
[1642276367924,0.00015471,43448.0,43447.0,0.27583535]
[1642276368526,0.00015471,43448.0,43447.0,1.07583535]
[1642276369029,0.00015471,43448.0,43447.0,0.27583535]
[1642276369426,0.00015471,43448.0,43446.0,0.31543158]
[1642276369824,0.00013752,43447.0,43446.0,0.31543158]
[1642276370428,0.00013752,43447.0,43446.0,1.36718886]
[1642276372674,0.00013752,43447.0,43446.0,1.95622506]